[Event "Titled Tuesday Blitz October 18 Late 2022"]
[White "Vlassov, Nikolai"]
[Black "Gupta, Abhijeet"]
[WhiteFideId "4103360"]
[BlackFideId "5010608"]
[WhiteElo "2324"]
[BlackElo "2549"]
[Result "1-0"]
[Round "02"]
[TimeControl "180+1"]
[Date "2022.10.18"]
[WhiteClock "0:00:12"]
[BlackClock "0:00:05"]

1. e4 {[%clk 0:03:00]}  c5 {[%clk 0:02:59]} 2. c3 {[%clk 0:03:00]}  d5 {[%clk 0:02:57]} 3. exd5 {[%clk 0:03:01]}  Qxd5 {[%clk 0:02:58]} 4. d4 {[%clk 0:03:01]}  Nf6 {[%clk 0:02:58]} 5. Nf3 {[%clk 0:03:02]}  e6 {[%clk 0:02:55]} 6. a3 {[%clk 0:03:01]}  Nc6 {[%clk 0:02:54]} 7. Be3 {[%clk 0:03:01]}  Be7 {[%clk 0:02:49]} 8. dxc5 {[%clk 0:02:59]}  Qxd1+ {[%clk 0:02:49]} 9. Kxd1 {[%clk 0:03:00]}  O-O {[%clk 0:02:47]} 10. b4 {[%clk 0:03:00]}  a5 {[%clk 0:02:47]} 11. b5 {[%clk 0:02:54]}  Nb8 {[%clk 0:02:47]} 12. Nbd2 {[%clk 0:02:51]}  Nbd7 {[%clk 0:02:34]} 13. c6 {[%clk 0:02:48]}  bxc6 {[%clk 0:02:35]} 14. bxc6 {[%clk 0:02:49]}  Nc5 {[%clk 0:02:35]} 15. Kc2 {[%clk 0:02:41]}  Ng4 {[%clk 0:02:05]} 16. Bd4 {[%clk 0:02:37]}  e5 {[%clk 0:02:04]} 17. Nxe5 {[%clk 0:02:34]}  Nxe5 {[%clk 0:02:02]} 18. Bxe5 {[%clk 0:02:33]}  Bf5+ {[%clk 0:02:03]} 19. Kc1 {[%clk 0:02:30]}  Rfd8 {[%clk 0:01:55]} 20. c7 {[%clk 0:02:12]}  Rd5 {[%clk 0:01:50]} 21. Bd4 {[%clk 0:01:59]}  Bg5 {[%clk 0:01:38]} 22. Bc4 {[%clk 0:01:59]}  Rd7 {[%clk 0:01:25]} 23. h4 {[%clk 0:01:35]}  Bh6 {[%clk 0:01:18]} 24. f3 {[%clk 0:01:27]}  Bf4 {[%clk 0:01:08]} 25. g3 {[%clk 0:01:18]}  Bxd2+ {[%clk 0:00:52]} 26. Kxd2 {[%clk 0:01:18]}  Rxc7 {[%clk 0:00:51]} 27. g4 {[%clk 0:01:11]}  Be6 {[%clk 0:00:51]} 28. Bxe6 {[%clk 0:01:08]}  Nxe6 {[%clk 0:00:49]} 29. Rhd1 {[%clk 0:00:52]}  f6 {[%clk 0:00:45]} 30. Ke3 {[%clk 0:00:51]}  Kf7 {[%clk 0:00:45]} 31. Rab1 {[%clk 0:00:51]}  Re8 {[%clk 0:00:36]} 32. Kf2 {[%clk 0:00:52]}  Nf4 {[%clk 0:00:22]} 33. Rd2 {[%clk 0:00:49]}  Rce7 {[%clk 0:00:20]} 34. h5 {[%clk 0:00:35]}  g5 {[%clk 0:00:19]} 35. hxg6+ {[%clk 0:00:34]}  hxg6 {[%clk 0:00:20]} 36. Rb6 {[%clk 0:00:27]}  Nd5 {[%clk 0:00:20]} 37. Rd6 {[%clk 0:00:22]}  Nc7 {[%clk 0:00:14]} 38. Rxf6+ {[%clk 0:00:22]}  Kg8 {[%clk 0:00:14]} 39. Rxg6+ {[%clk 0:00:22]}  Kf7 {[%clk 0:00:14]} 40. Rf6+ {[%clk 0:00:22]}  Kg8 {[%clk 0:00:14]} 41. Kg3 {[%clk 0:00:22]}  Ne6 {[%clk 0:00:13]} 42. Rh2 {[%clk 0:00:16]}  Nf8 {[%clk 0:00:13]} 43. Rh5 {[%clk 0:00:14]}  Re2 {[%clk 0:00:04]} 44. Rg5+ {[%clk 0:00:13]}  Kh7 {[%clk 0:00:04]} 45. Rf7+ {[%clk 0:00:13]}  Kh6 {[%clk 0:00:05]} 46. Rh5+ {[%clk 0:00:12]} 1-0


[Site "https://www.chess.com"]

[Event "Titled Tuesday Blitz October 18 Late 2022"]
[White "Von Buelow, Georg"]
[Black "Malka, Samuel"]
[WhiteFideId "4620658"]
[BlackFideId "20643675"]
[WhiteElo "2239"]
[BlackElo "2470"]
[Result "0-1"]
[Round "02"]
[TimeControl "180+1"]
[Date "2022.10.19"]
[WhiteClock "0:01:04"]
[BlackClock "0:00:58"]

1. e4 {[%clk 0:01:51]}  e5 {[%clk 0:02:58]} 2. Nf3 {[%clk 0:01:51]}  Nc6 {[%clk 0:02:58]} 3. Nc3 {[%clk 0:01:50]}  Nf6 {[%clk 0:02:57]} 4. d4 {[%clk 0:01:50]}  exd4 {[%clk 0:02:57]} 5. Nxd4 {[%clk 0:01:51]}  Bb4 {[%clk 0:02:54]} 6. Nxc6 {[%clk 0:01:51]}  bxc6 {[%clk 0:02:54]} 7. Bd3 {[%clk 0:01:52]}  d5 {[%clk 0:02:53]} 8. exd5 {[%clk 0:01:53]}  Bg4 {[%clk 0:02:48]} 9. Be2 {[%clk 0:01:50]}  Qe7 {[%clk 0:02:27]} 10. O-O {[%clk 0:01:44]}  Bxe2 {[%clk 0:02:16]} 11. Nxe2 {[%clk 0:01:43]}  cxd5 {[%clk 0:02:13]} 12. c3 {[%clk 0:01:40]}  Bd6 {[%clk 0:02:12]} 13. Nd4 {[%clk 0:01:28]}  O-O {[%clk 0:02:01]} 14. Nf5 {[%clk 0:01:24]}  Qe5 {[%clk 0:01:48]} 15. Nxd6 {[%clk 0:01:23]}  Qxd6 {[%clk 0:01:49]} 16. Qd3 {[%clk 0:01:18]}  Rab8 {[%clk 0:01:46]} 17. b3 {[%clk 0:01:17]}  Rfe8 {[%clk 0:01:37]} 18. Bg5 {[%clk 0:01:16]}  Ne4 {[%clk 0:01:36]} 19. Be3 {[%clk 0:01:16]}  a5 {[%clk 0:01:32]} 20. Rfd1 {[%clk 0:01:15]}  Rbd8 {[%clk 0:01:09]} 21. Rac1 {[%clk 0:01:06]}  Qa3 {[%clk 0:01:06]} 22. Qc2 {[%clk 0:01:04]}  Qe7 {[%clk 0:00:58]} 0-1


[Site "https://www.chess.com"]

[Event "Titled Tuesday Blitz October 18 Late 2022"]
[White "Wieczorek, Oskar"]
[Black "Zochowski, Kacper"]
[WhiteFideId "1133950"]
[BlackFideId "1125494"]
[WhiteElo "2757"]
[BlackElo "2517"]
[Result "1-0"]
[Round "02"]
[TimeControl "180+1"]
[Date "2022.10.19"]
[WhiteClock "0:01:17"]
[BlackClock "0:01:46"]

1. e4 {[%clk 0:03:00]}  d6 {[%clk 0:02:57]} 2. d4 {[%clk 0:03:01]}  g6 {[%clk 0:02:57]} 3. Nf3 {[%clk 0:03:00]}  Bg7 {[%clk 0:02:57]} 4. Bc4 {[%clk 0:03:01]}  Nf6 {[%clk 0:02:55]} 5. Qe2 {[%clk 0:02:59]}  O-O {[%clk 0:02:54]} 6. e5 {[%clk 0:02:56]}  dxe5 {[%clk 0:02:52]} 7. dxe5 {[%clk 0:02:57]}  Nd5 {[%clk 0:02:53]} 8. h3 {[%clk 0:02:58]}  Nb6 {[%clk 0:02:50]} 9. Bb3 {[%clk 0:02:58]}  Nc6 {[%clk 0:02:51]} 10. Nbd2 {[%clk 0:02:59]}  Na5 {[%clk 0:02:47]} 11. O-O {[%clk 0:02:56]}  Bf5 {[%clk 0:02:47]} 12. Ne4 {[%clk 0:02:48]}  Nxb3 {[%clk 0:02:42]} 13. axb3 {[%clk 0:02:48]}  Qd5 {[%clk 0:02:42]} 14. Nc3 {[%clk 0:02:35]}  Qd8 {[%clk 0:02:39]} 15. Rd1 {[%clk 0:02:34]}  Qc8 {[%clk 0:02:37]} 16. Ne4 {[%clk 0:02:12]}  Rd8 {[%clk 0:02:24]} 17. Bg5 {[%clk 0:02:06]}  Rxd1+ {[%clk 0:02:20]} 18. Rxd1 {[%clk 0:02:07]}  Qe6 {[%clk 0:02:18]} 19. Nc5 {[%clk 0:02:02]}  Qc6 {[%clk 0:02:18]} 20. b4 {[%clk 0:01:54]}  h6 {[%clk 0:02:04]} 21. Bxe7 {[%clk 0:01:42]}  Qe8 {[%clk 0:02:01]} 22. Bh4 {[%clk 0:01:38]}  c6 {[%clk 0:01:57]} 23. Nxb7 {[%clk 0:01:33]}  Nd5 {[%clk 0:01:57]} 24. Nd6 {[%clk 0:01:26]}  Qe6 {[%clk 0:01:55]} 25. Bg3 {[%clk 0:01:21]}  Nxb4 {[%clk 0:01:48]} 26. Nd4 {[%clk 0:01:21]}  Qa2 {[%clk 0:01:46]} 27. N4xf5 {[%clk 0:01:19]}  gxf5 {[%clk 0:01:47]} 28. Nxf5 {[%clk 0:01:19]}  Qxb2 {[%clk 0:01:46]} 29. Qg4 {[%clk 0:01:17]} 1-0


[Site "https://www.chess.com"]

[Event "Titled Tuesday Blitz October 18 Late 2022"]
[White "Wiegmann, Sascha"]
[Black "Korchmar, Vasiliy"]
[WhiteFideId "4682041"]
[BlackFideId "24131750"]
[WhiteElo "2284"]
[BlackElo "2370"]
[Result "0-1"]
[Round "02"]
[TimeControl "180+1"]
[Date "2022.10.19"]
[WhiteClock "0:00:20"]
[BlackClock "0:02:18"]

1. Nf3 {[%clk 0:03:00]}  d5 {[%clk 0:02:59]} 2. g3 {[%clk 0:02:57]}  g6 {[%clk 0:02:59]} 3. Bg2 {[%clk 0:02:57]}  Bg7 {[%clk 0:02:59]} 4. O-O {[%clk 0:02:55]}  e5 {[%clk 0:02:59]} 5. d3 {[%clk 0:02:56]}  Ne7 {[%clk 0:03:00]} 6. e4 {[%clk 0:02:55]}  O-O {[%clk 0:02:59]} 7. exd5 {[%clk 0:02:52]}  Nxd5 {[%clk 0:03:00]} 8. Re1 {[%clk 0:02:52]}  Nc6 {[%clk 0:03:00]} 9. Nbd2 {[%clk 0:02:53]}  Re8 {[%clk 0:02:59]} 10. Nc4 {[%clk 0:02:40]}  h6 {[%clk 0:02:59]} 11. a4 {[%clk 0:02:28]}  a5 {[%clk 0:02:58]} 12. c3 {[%clk 0:02:28]}  Bf5 {[%clk 0:02:58]} 13. Nh4 {[%clk 0:01:57]}  Be6 {[%clk 0:02:57]} 14. Qb3 {[%clk 0:01:46]}  Nb6 {[%clk 0:02:55]} 15. Be3 {[%clk 0:01:37]}  Qxd3 {[%clk 0:02:53]} 16. Nxb6 {[%clk 0:00:30]}  Bxb3 {[%clk 0:02:51]} 17. Nxa8 {[%clk 0:00:30]}  Rxa8 {[%clk 0:02:52]} 18. Nf3 {[%clk 0:00:29]}  Rd8 {[%clk 0:02:38]} 19. Nd2 {[%clk 0:00:29]}  Bd5 {[%clk 0:02:37]} 20. Bf1 {[%clk 0:00:27]}  Qf5 {[%clk 0:02:35]} 21. c4 {[%clk 0:00:26]}  Be6 {[%clk 0:02:32]} 22. b3 {[%clk 0:00:26]}  Nd4 {[%clk 0:02:32]} 23. Bxd4 {[%clk 0:00:26]}  exd4 {[%clk 0:02:33]} 24. Rad1 {[%clk 0:00:25]}  Qh5 {[%clk 0:02:28]} 25. Ne4 {[%clk 0:00:23]}  Bg4 {[%clk 0:02:26]} 26. Rd3 {[%clk 0:00:23]}  b6 {[%clk 0:02:23]} 27. c5 {[%clk 0:00:19]}  bxc5 {[%clk 0:02:22]} 28. Rc1 {[%clk 0:00:20]}  Bf5 {[%clk 0:02:17]} 29. Rxc5 {[%clk 0:00:19]}  Bxe4 {[%clk 0:02:16]} 30. Rxh5 {[%clk 0:00:19]}  gxh5 {[%clk 0:02:17]} 31. Rd2 {[%clk 0:00:18]}  d3 {[%clk 0:02:17]} 32. Rd1 {[%clk 0:00:18]}  Bc3 {[%clk 0:02:17]} 33. Bxd3 {[%clk 0:00:18]}  Rxd3 {[%clk 0:02:17]} 34. Rxd3 {[%clk 0:00:18]}  Bxd3 {[%clk 0:02:17]} 35. f4 {[%clk 0:00:19]}  Bc2 {[%clk 0:02:17]} 36. Kf2 {[%clk 0:00:20]}  Bxb3 {[%clk 0:02:18]} 0-1


[Site "https://www.chess.com"]

[Event "Titled Tuesday Blitz October 18 Late 2022"]
[White "Yano, William Jorge Froes"]
[Black "Jimenez Almeida, Luis David"]
[WhiteFideId "2112949"]
[BlackFideId "22242244"]
[WhiteElo "2122"]
[BlackElo "2158"]
[Result "1-0"]
[Round "02"]
[TimeControl "180+1"]
[Date "2022.10.19"]
[WhiteClock "0:00:03"]
[BlackClock "0:00:17"]

1. e4 {[%clk 0:03:00]}  g6 {[%clk 0:02:58]} 2. Nc3 {[%clk 0:02:59]}  Bg7 {[%clk 0:02:59]} 3. Bc4 {[%clk 0:02:59]}  c5 {[%clk 0:02:56]} 4. f4 {[%clk 0:02:55]}  e6 {[%clk 0:02:55]} 5. Nf3 {[%clk 0:02:55]}  a6 {[%clk 0:02:54]} 6. a4 {[%clk 0:02:55]}  Ne7 {[%clk 0:02:54]} 7. d3 {[%clk 0:02:49]}  d5 {[%clk 0:02:53]} 8. Ba2 {[%clk 0:02:47]}  dxe4 {[%clk 0:02:49]} 9. Nxe4 {[%clk 0:02:41]}  b6 {[%clk 0:02:48]} 10. O-O {[%clk 0:02:41]}  Bb7 {[%clk 0:02:47]} 11. Qe1 {[%clk 0:02:34]}  O-O {[%clk 0:02:45]} 12. a5 {[%clk 0:02:21]}  Nbc6 {[%clk 0:02:30]} 13. axb6 {[%clk 0:02:17]}  Qxb6 {[%clk 0:02:31]} 14. Kh1 {[%clk 0:02:16]}  Nb4 {[%clk 0:02:20]} 15. Bb3 {[%clk 0:02:13]}  a5 {[%clk 0:02:15]} 16. Ne5 {[%clk 0:02:06]}  Rad8 {[%clk 0:02:12]} 17. Be3 {[%clk 0:02:00]}  Bxe4 {[%clk 0:02:07]} 18. dxe4 {[%clk 0:02:00]}  Nec6 {[%clk 0:01:54]} 19. Nc4 {[%clk 0:01:57]}  Qb5 {[%clk 0:01:49]} 20. Qf2 {[%clk 0:01:46]}  Nd4 {[%clk 0:01:36]} 21. Rxa5 {[%clk 0:01:34]}  Qc6 {[%clk 0:01:35]} 22. Ne5 {[%clk 0:01:28]}  Qxe4 {[%clk 0:01:31]} 23. Rxc5 {[%clk 0:01:20]}  Nxb3 {[%clk 0:01:30]} 24. cxb3 {[%clk 0:01:19]}  Nd3 {[%clk 0:01:24]} 25. Nxd3 {[%clk 0:01:14]}  Rxd3 {[%clk 0:01:25]} 26. Bc1 {[%clk 0:00:51]}  Bd4 {[%clk 0:01:22]} 27. Rc4 {[%clk 0:00:45]}  Qd5 {[%clk 0:01:12]} 28. Qc2 {[%clk 0:00:32]}  Bf6 {[%clk 0:01:06]} 29. Rc8 {[%clk 0:00:21]}  Qxb3 {[%clk 0:01:01]} 30. Rxf8+ {[%clk 0:00:19]}  Kxf8 {[%clk 0:01:02]} 31. Qc7 {[%clk 0:00:15]}  Qd5 {[%clk 0:00:56]} 32. f5 {[%clk 0:00:14]}  Rd1 {[%clk 0:00:54]} 33. Bh6+ {[%clk 0:00:13]}  Ke8 {[%clk 0:00:51]} 34. Qc8+ {[%clk 0:00:12]}  Bd8 {[%clk 0:00:50]} 35. Rg1 {[%clk 0:00:06]}  Qd4 {[%clk 0:00:28]} 36. Qc6+ {[%clk 0:00:06]}  Ke7 {[%clk 0:00:29]} 37. f6+ {[%clk 0:00:06]}  Kxf6 {[%clk 0:00:24]} 38. Qf3+ {[%clk 0:00:06]}  Ke7 {[%clk 0:00:24]} 39. Rxd1 {[%clk 0:00:06]}  Qxb2 {[%clk 0:00:23]} 40. Bg5+ {[%clk 0:00:06]}  Ke8 {[%clk 0:00:22]} 41. Qc6+ {[%clk 0:00:06]}  Kf8 {[%clk 0:00:21]} 42. Rxd8+ {[%clk 0:00:06]}  Kg7 {[%clk 0:00:21]} 43. Rd1 {[%clk 0:00:05]}  Qe2 {[%clk 0:00:21]} 44. Qf3 {[%clk 0:00:04]}  Qe5 {[%clk 0:00:20]} 45. Bf4 {[%clk 0:00:04]}  Qf5 {[%clk 0:00:18]} 46. g4 {[%clk 0:00:04]}  Qb5 {[%clk 0:00:18]} 47. g5 {[%clk 0:00:04]}  Qa4 {[%clk 0:00:16]} 48. Be5+ {[%clk 0:00:03]}  Kf8 {[%clk 0:00:16]} 49. Rd8+ {[%clk 0:00:03]}  Ke7 {[%clk 0:00:17]} 50. Bf6# {[%clk 0:00:03]} 1-0


[Site "https://www.chess.com"]

[Event "Titled Tuesday Blitz October 18 Late 2022"]
[White "Yeletsky, Ivan"]
[Black "Aldokhin, Ivan"]
[WhiteFideId "24180327"]
[BlackFideId "24115720"]
[WhiteElo "2391"]
[BlackElo "2313"]
[Result "1-0"]
[Round "02"]
[TimeControl "180+1"]
[Date "2022.10.18"]
[WhiteClock "0:00:06"]
[BlackClock "0:00:02"]

1. Nf3 {[%clk 0:02:51]}  Nf6 {[%clk 0:02:59]} 2. c4 {[%clk 0:02:51]}  g6 {[%clk 0:02:59]} 3. b4 {[%clk 0:02:50]}  Bg7 {[%clk 0:02:59]} 4. Bb2 {[%clk 0:02:50]}  O-O {[%clk 0:02:59]} 5. g3 {[%clk 0:02:51]}  d5 {[%clk 0:02:51]} 6. cxd5 {[%clk 0:02:50]}  Nxd5 {[%clk 0:02:49]} 7. Bxg7 {[%clk 0:02:51]}  Kxg7 {[%clk 0:02:48]} 8. Qb3 {[%clk 0:02:51]}  f6 {[%clk 0:02:29]} 9. Nc3 {[%clk 0:02:44]}  Be6 {[%clk 0:02:23]} 10. Qb2 {[%clk 0:02:36]}  Nd7 {[%clk 0:01:43]} 11. Bg2 {[%clk 0:02:34]}  N7b6 {[%clk 0:01:38]} 12. d3 {[%clk 0:02:31]}  Qd6 {[%clk 0:01:28]} 13. a3 {[%clk 0:02:25]}  Nxc3 {[%clk 0:01:25]} 14. Qxc3 {[%clk 0:02:26]}  Nd5 {[%clk 0:01:19]} 15. Qb2 {[%clk 0:02:21]}  Bf7 {[%clk 0:01:14]} 16. O-O {[%clk 0:02:19]}  e5 {[%clk 0:01:14]} 17. Nd2 {[%clk 0:02:15]}  c6 {[%clk 0:01:10]} 18. Rfc1 {[%clk 0:02:07]}  Qe7 {[%clk 0:01:09]} 19. b5 {[%clk 0:02:01]}  cxb5 {[%clk 0:01:09]} 20. Qxb5 {[%clk 0:02:01]}  Rad8 {[%clk 0:01:01]} 21. a4 {[%clk 0:01:51]}  a6 {[%clk 0:00:54]} 22. Qb2 {[%clk 0:01:49]}  Rc8 {[%clk 0:00:38]} 23. a5 {[%clk 0:01:47]}  Qd7 {[%clk 0:00:36]} 24. Rxc8 {[%clk 0:01:33]}  Rxc8 {[%clk 0:00:35]} 25. Nc4 {[%clk 0:01:34]}  Rc5 {[%clk 0:00:28]} 26. Qa3 {[%clk 0:01:17]}  Qc7 {[%clk 0:00:28]} 27. h4 {[%clk 0:01:09]}  Ne7 {[%clk 0:00:27]} 28. Ne3 {[%clk 0:01:01]}  Nd5 {[%clk 0:00:23]} 29. Bxd5 {[%clk 0:00:34]}  Bxd5 {[%clk 0:00:22]} 30. h5 {[%clk 0:00:35]}  Be6 {[%clk 0:00:18]} 31. hxg6 {[%clk 0:00:30]}  hxg6 {[%clk 0:00:17]} 32. Qb4 {[%clk 0:00:27]}  Rb5 {[%clk 0:00:16]} 33. Qe4 {[%clk 0:00:22]}  Rxa5 {[%clk 0:00:09]} 34. Rxa5 {[%clk 0:00:20]}  Qxa5 {[%clk 0:00:10]} 35. Qxb7+ {[%clk 0:00:21]}  Bf7 {[%clk 0:00:10]} 36. Nc4 {[%clk 0:00:18]}  Qe1+ {[%clk 0:00:02]} 37. Kg2 {[%clk 0:00:17]}  Qxe2 {[%clk 0:00:03]} 38. Nd6 {[%clk 0:00:18]}  Qa2 {[%clk 0:00:03]} 39. Ne8+ {[%clk 0:00:16]}  Kf8 {[%clk 0:00:04]} 40. Nxf6 {[%clk 0:00:17]}  Kg7 {[%clk 0:00:04]} 41. Ne4 {[%clk 0:00:11]}  a5 {[%clk 0:00:02]} 42. Qe7 {[%clk 0:00:10]}  Qd5 {[%clk 0:00:02]} 43. Qf6+ {[%clk 0:00:11]}  Kg8 {[%clk 0:00:02]} 44. Qa6 {[%clk 0:00:10]}  Kg7 {[%clk 0:00:02]} 45. Qa7 {[%clk 0:00:08]}  Qe6 {[%clk 0:00:02]} 46. Qxa5 {[%clk 0:00:06]}  Qd5 {[%clk 0:00:03]} 47. Qa7 {[%clk 0:00:06]}  Qxd3 {[%clk 0:00:02]} 48. Ng5 {[%clk 0:00:05]}  Qd5+ {[%clk 0:00:02]} 49. Kg1 {[%clk 0:00:05]}  Qd1+ {[%clk 0:00:01]} 50. Kg2 {[%clk 0:00:05]}  Qd5+ {[%clk 0:00:01]} 51. Kh2 {[%clk 0:00:04]}  e4 {[%clk 0:00:02]} 52. Qa1+ {[%clk 0:00:03]}  Kg8 {[%clk 0:00:02]} 53. Qf6 {[%clk 0:00:04]}  Qf5 {[%clk 0:00:02]} 54. Qxf5 {[%clk 0:00:03]}  gxf5 {[%clk 0:00:02]} 55. Nh3 {[%clk 0:00:04]}  Kg7 {[%clk 0:00:02]} 56. Nf4 {[%clk 0:00:05]}  Kf6 {[%clk 0:00:02]} 57. Kh3 {[%clk 0:00:06]} 1-0


[Site "https://www.chess.com"]

[Event "Titled Tuesday Blitz October 18 Late 2022"]
[White "Yi, Richard"]
[Black "Shimanov, Aleksandr"]
[WhiteFideId "2079518"]
[BlackFideId "4198603"]
[WhiteElo "2147"]
[BlackElo "2605"]
[Result "0-1"]
[Round "02"]
[TimeControl "180+1"]
[Date "2022.10.18"]
[WhiteClock "0:00:01"]
[BlackClock "0:01:39"]

1. d4 {[%clk 0:03:00]}  d5 {[%clk 0:02:59]} 2. c4 {[%clk 0:03:01]}  e6 {[%clk 0:03:00]} 3. Nf3 {[%clk 0:03:00]}  c5 {[%clk 0:02:58]} 4. cxd5 {[%clk 0:02:57]}  exd5 {[%clk 0:02:59]} 5. g3 {[%clk 0:02:57]}  Nc6 {[%clk 0:02:57]} 6. Bg2 {[%clk 0:02:58]}  Nf6 {[%clk 0:02:57]} 7. O-O {[%clk 0:02:58]}  Be7 {[%clk 0:02:57]} 8. dxc5 {[%clk 0:02:58]}  Bxc5 {[%clk 0:02:56]} 9. a3 {[%clk 0:02:59]}  Ne4 {[%clk 0:02:56]} 10. b4 {[%clk 0:02:47]}  Be7 {[%clk 0:02:56]} 11. Bb2 {[%clk 0:02:45]}  Bf6 {[%clk 0:02:56]} 12. Bxf6 {[%clk 0:02:33]}  Qxf6 {[%clk 0:02:57]} 13. Ra2 {[%clk 0:02:34]}  Be6 {[%clk 0:02:56]} 14. Rc2 {[%clk 0:02:21]}  O-O {[%clk 0:02:50]} 15. b5 {[%clk 0:02:17]}  Na5 {[%clk 0:02:50]} 16. Qd4 {[%clk 0:02:14]}  Qe7 {[%clk 0:02:41]} 17. Nfd2 {[%clk 0:01:59]}  Nf6 {[%clk 0:02:37]} 18. Rfc1 {[%clk 0:01:53]}  Nc4 {[%clk 0:02:16]} 19. a4 {[%clk 0:01:34]}  Rfd8 {[%clk 0:02:12]} 20. Rc3 {[%clk 0:01:30]}  b6 {[%clk 0:02:03]} 21. e3 {[%clk 0:01:24]}  Rac8 {[%clk 0:02:02]} 22. Nf3 {[%clk 0:01:21]}  Ne4 {[%clk 0:02:00]} 23. R3c2 {[%clk 0:01:16]}  Nc5 {[%clk 0:02:00]} 24. Nbd2 {[%clk 0:01:12]}  Nxa4 {[%clk 0:01:58]} 25. Nxc4 {[%clk 0:01:02]}  dxc4 {[%clk 0:01:59]} 26. Qa1 {[%clk 0:01:02]}  Nc5 {[%clk 0:01:52]} 27. Nd4 {[%clk 0:01:01]}  Nb3 {[%clk 0:01:51]} 28. Nxb3 {[%clk 0:00:27]}  cxb3 {[%clk 0:01:52]} 29. Rc6 {[%clk 0:00:28]}  Qb4 {[%clk 0:01:43]} 30. Qb2 {[%clk 0:00:12]}  Qxb5 {[%clk 0:01:43]} 31. Rxc8 {[%clk 0:00:06]}  Rxc8 {[%clk 0:01:43]} 32. Rxc8+ {[%clk 0:00:07]}  Bxc8 {[%clk 0:01:44]} 33. Bf1 {[%clk 0:00:06]}  Qd5 {[%clk 0:01:42]} 34. Qc3 {[%clk 0:00:05]}  Be6 {[%clk 0:01:39]} 35. Qc7 {[%clk 0:00:01]}  g6 {[%clk 0:01:39]} 0-1


[Site "https://www.chess.com"]

[Event "Titled Tuesday Blitz October 18 Late 2022"]
[White "Zakaryan, David"]
[Black "Bochnicka, Vladimir"]
[WhiteFideId "24101923"]
[BlackFideId "14943450"]
[WhiteElo "2409"]
[BlackElo "2239"]
[Result "1-0"]
[Round "02"]
[TimeControl "180+1"]
[Date "2022.10.19"]
[WhiteClock "0:02:10"]
[BlackClock "0:00:03"]

1. g3 {[%clk 0:03:00]}  c5 {[%clk 0:02:59]} 2. Bg2 {[%clk 0:03:00]}  Nc6 {[%clk 0:03:00]} 3. c4 {[%clk 0:02:55]}  g6 {[%clk 0:02:59]} 4. Nc3 {[%clk 0:02:55]}  Bg7 {[%clk 0:03:00]} 5. e3 {[%clk 0:02:55]}  d6 {[%clk 0:03:00]} 6. Nge2 {[%clk 0:02:55]}  Bd7 {[%clk 0:03:00]} 7. O-O {[%clk 0:02:53]}  Qc8 {[%clk 0:03:00]} 8. a3 {[%clk 0:02:53]}  Bh3 {[%clk 0:03:00]} 9. Nf4 {[%clk 0:02:53]}  Bxg2 {[%clk 0:03:00]} 10. Kxg2 {[%clk 0:02:53]}  h5 {[%clk 0:02:59]} 11. h4 {[%clk 0:02:53]}  Nf6 {[%clk 0:02:39]} 12. Rb1 {[%clk 0:02:53]}  a5 {[%clk 0:02:38]} 13. b3 {[%clk 0:02:52]}  O-O {[%clk 0:02:35]} 14. Bb2 {[%clk 0:02:53]}  e5 {[%clk 0:02:30]} 15. Nfd5 {[%clk 0:02:52]}  Nxd5 {[%clk 0:02:29]} 16. Nxd5 {[%clk 0:02:53]}  Qd8 {[%clk 0:02:10]} 17. d3 {[%clk 0:02:50]}  f5 {[%clk 0:02:09]} 18. f4 {[%clk 0:02:33]}  Ne7 {[%clk 0:01:49]} 19. Qf3 {[%clk 0:02:32]}  a4 {[%clk 0:01:25]} 20. b4 {[%clk 0:02:31]}  b6 {[%clk 0:00:50]} 21. bxc5 {[%clk 0:02:30]}  bxc5 {[%clk 0:00:48]} 22. Ba1 {[%clk 0:02:30]}  Kh7 {[%clk 0:00:37]} 23. Rb7 {[%clk 0:02:29]}  Nc6 {[%clk 0:00:06]} 24. Rfb1 {[%clk 0:02:27]}  Na5 {[%clk 0:00:03]} 25. fxe5 {[%clk 0:02:14]}  Nxb7 {[%clk 0:00:03]} 26. Rxb7 {[%clk 0:02:15]}  dxe5 {[%clk 0:00:02]} 27. Bxe5 {[%clk 0:02:16]}  Rg8 {[%clk 0:00:03]} 28. Nf6+ {[%clk 0:02:10]}  Kh6 {[%clk 0:00:03]} 29. Nxg8+ {[%clk 0:02:09]}  Qxg8 {[%clk 0:00:03]} 30. Bxg7+ {[%clk 0:02:09]}  Kh7 {[%clk 0:00:03]} 31. Bf6+ {[%clk 0:02:10]}  Kh6 {[%clk 0:00:03]} 32. Bg5# {[%clk 0:02:10]} 1-0


[Site "https://www.chess.com"]

[Event "Titled Tuesday Blitz October 18 Late 2022"]
[White "Abdrlauf, Elham"]
[Black "Jaracz, Pawel"]
[WhiteFideId "1533533"]
[BlackFideId "1102222"]
[WhiteElo "2434"]
[BlackElo "2459"]
[Result "0-1"]
[Round "03"]
[TimeControl "180+1"]
[Date "2022.10.18"]
[WhiteClock "0:00:02"]
[BlackClock "0:00:05"]

1. e4 {[%clk 0:03:00]}  c5 {[%clk 0:03:00]} 2. Nf3 {[%clk 0:03:00]}  e6 {[%clk 0:03:00]} 3. c3 {[%clk 0:03:00]}  Nf6 {[%clk 0:03:00]} 4. e5 {[%clk 0:03:00]}  Nd5 {[%clk 0:03:00]} 5. Bc4 {[%clk 0:03:01]}  d6 {[%clk 0:02:59]} 6. d4 {[%clk 0:03:01]}  cxd4 {[%clk 0:02:59]} 7. cxd4 {[%clk 0:03:01]}  Nb6 {[%clk 0:03:00]} 8. Bb5+ {[%clk 0:02:59]}  Bd7 {[%clk 0:02:59]} 9. Bd3 {[%clk 0:02:59]}  Bc6 {[%clk 0:02:57]} 10. O-O {[%clk 0:02:59]}  N8d7 {[%clk 0:02:56]} 11. exd6 {[%clk 0:02:50]}  Bxd6 {[%clk 0:02:56]} 12. Nc3 {[%clk 0:02:51]}  O-O {[%clk 0:02:55]} 13. Ne4 {[%clk 0:02:50]}  Be7 {[%clk 0:02:52]} 14. Re1 {[%clk 0:02:51]}  Nd5 {[%clk 0:02:51]} 15. Bg5 {[%clk 0:02:48]}  h6 {[%clk 0:02:46]} 16. Bxe7 {[%clk 0:02:46]}  Nxe7 {[%clk 0:02:41]} 17. Qd2 {[%clk 0:02:44]}  Nf5 {[%clk 0:02:39]} 18. Rad1 {[%clk 0:02:43]}  Qb6 {[%clk 0:02:37]} 19. Bb1 {[%clk 0:02:09]}  Rad8 {[%clk 0:02:36]} 20. b3 {[%clk 0:01:40]}  a5 {[%clk 0:02:33]} 21. Qf4 {[%clk 0:01:40]}  Bxe4 {[%clk 0:02:02]} 22. Bxe4 {[%clk 0:01:40]}  Nd6 {[%clk 0:01:54]} 23. Bd3 {[%clk 0:01:31]}  Nf6 {[%clk 0:01:48]} 24. Ne5 {[%clk 0:01:26]}  Nb5 {[%clk 0:01:47]} 25. Nf3 {[%clk 0:00:59]}  Rd7 {[%clk 0:01:33]} 26. Rd2 {[%clk 0:00:59]}  Rfd8 {[%clk 0:01:32]} 27. Red1 {[%clk 0:00:59]}  Nc3 {[%clk 0:01:11]} 28. Re1 {[%clk 0:00:55]}  Ncd5 {[%clk 0:01:11]} 29. Qg3 {[%clk 0:00:53]}  Nb4 {[%clk 0:01:11]} 30. Bb1 {[%clk 0:00:51]}  Nc6 {[%clk 0:01:10]} 31. Red1 {[%clk 0:00:48]}  Qb4 {[%clk 0:01:02]} 32. Qf4 {[%clk 0:00:33]}  Qd6 {[%clk 0:00:58]} 33. Qe3 {[%clk 0:00:27]}  Qb4 {[%clk 0:00:53]} 34. h3 {[%clk 0:00:26]}  Rd6 {[%clk 0:00:50]} 35. Rd3 {[%clk 0:00:24]}  Ne7 {[%clk 0:00:45]} 36. Ne5 {[%clk 0:00:22]}  Nf5 {[%clk 0:00:45]} 37. Qc1 {[%clk 0:00:19]}  Nxd4 {[%clk 0:00:39]} 38. Qb2 {[%clk 0:00:19]}  Qc5 {[%clk 0:00:27]} 39. Nc4 {[%clk 0:00:18]}  R6d7 {[%clk 0:00:24]} 40. a3 {[%clk 0:00:11]}  b6 {[%clk 0:00:14]} 41. Qc3 {[%clk 0:00:08]}  e5 {[%clk 0:00:14]} 42. Qb2 {[%clk 0:00:07]}  Qc7 {[%clk 0:00:11]} 43. Ne3 {[%clk 0:00:06]}  Nd5 {[%clk 0:00:10]} 44. Nxd5 {[%clk 0:00:04]}  Rxd5 {[%clk 0:00:11]} 45. b4 {[%clk 0:00:01]}  axb4 {[%clk 0:00:10]} 46. axb4 {[%clk 0:00:02]}  Qd7 {[%clk 0:00:05]} 47. Qa2 {[%clk 0:00:01]}  Rd6 {[%clk 0:00:05]} 48. Qd2 {[%clk 0:00:02]}  e4 {[%clk 0:00:05]} 0-1


[Site "https://www.chess.com"]